bitfinex/quotes_ETHUSD_20220113
["timestamp","ask_amount","ask_price","bid_price","bid_amount"]
[1642034569799,3.05267584,3371.4,3371.3,0.50284212]
[1642034573612,4.55726444,3371.4,3371.3,0.50284212]
[1642034574413,3.05267584,3371.4,3371.3,0.50284212]
[1642034576117,4.55726444,3371.4,3371.3,0.50284212]
[1642034577363,4.55726444,3371.4,3371.3,0.5]
[1642034578261,5.14416807,3371.4,3371.3,0.5]
[1642034578461,5.26276807,3371.4,3371.3,0.5]
[1642034579261,7.51239815,3371.4,3371.3,0.5]
[1642034579460,7.81239815,3371.4,3371.3,0.5]
[1642034580507,5.56276807,3371.4,3371.3,0.5]
[1642034580708,3.47127584,3371.4,3371.3,0.5]
[1642034581307,3.17127584,3371.4,3371.3,0.5]
[1642034581713,3.05267584,3371.4,3371.3,0.5]
[1642034584054,4.55805688,3371.4,3371.3,0.5]
[1642034586057,3.05267584,3371.4,3371.3,0.5]
[1642034587260,3.17127584,3371.4,3371.3,0.5]
[1642034587462,5.42885056,3371.4,3371.3,0.5]
[1642034587700,5.31025056,3371.4,3371.3,0.5]
[1642034589107,4.55751709,3371.4,3371.3,0.5]
[1642034589808,3.05267584,3371.4,3371.3,0.5]
[1642034591205,5.31025056,3371.4,3371.3,0.5]
[1642034592462,5.42885056,3371.4,3371.3,0.5]
[1642034593264,3.17127584,3371.4,3371.3,0.5]
[1642034593464,5.20614426,3371.4,3371.3,0.5]
[1642034594965,3.17127584,3371.4,3371.3,0.5]
[1642034595606,5.43770076,3371.4,3371.3,0.5]
[1642034596007,5.43770076,3371.4,3371.3,0.50754906]
[1642034596205,3.17127584,3371.4,3371.3,0.50754906]
[1642034596810,5.434981,3371.4,3371.3,0.50754906]
[1642034597012,5.316381,3371.4,3371.3,0.50754906]
[1642034597610,5.16273018,3371.4,3371.3,0.50754906]
[1642034598010,5.16273018,3371.4,3370.6,0.1186]
[1642034598011,6.45,3371.3,3370.6,0.1186]
[1642034598210,0.7418124,3371.0,3370.2,0.1186]
[1642034598411,2.53086737,3370.9,3370.7,0.00625266]
[1642034598710,4.75652737,3370.9,3370.7,0.00625266]
[1642034598958,9.98740464,3370.8,3370.7,0.00625266]
[1642034599358,11.20490464,3370.8,3370.7,0.00625266]
[1642034599563,1.23476021,3370.5,3369.5,0.01307374]
[1642034599762,2.09993326,3370.6,3369.6,0.1186]
[1642034600164,0.50888022,3370.5,3369.7,0.0119369]
[1642034600563,0.50888022,3370.5,3369.8,0.1186]
[1642034600764,3.05267584,3370.5,3369.8,0.1186]
[1642034600963,3.05267584,3370.5,3369.9,0.01080005]
[1642034601366,0.50888022,3370.4,3369.6,0.01250532]
[1642034601566,0.50888022,3370.4,3370.3,0.5]
[1642034601965,0.50888022,3370.4,3370.3,0.50852636]
[1642034602169,3.75888022,3370.4,3370.3,0.50852636]
[1642034602615,8.30267584,3370.4,3370.3,0.50852636]
[1642034602806,6.30267584,3370.4,3370.3,0.50852636]
[1642034603206,6.60267584,3370.4,3370.3,0.50852636]
[1642034603407,6.60267584,3370.4,3369.5,0.1186]
[1642034603408,13.01643626,3370.4,3369.5,0.1186]
[1642034603608,7.89601884,3369.6,3369.5,0.1186]
[1642034603810,7.89601884,3369.6,3368.4,1.3302]
[1642034603811,11.35301884,3369.6,3368.4,1.3302]
[1642034604008,11.35301884,3369.6,3368.5,2.0]
[1642034604009,1.1187,3369.5,3368.5,2.0]
[1642034604210,1.1187,3369.5,3368.5,0.01023162]
[1642034604409,2.60309,3369.5,3368.5,0.01023162]
[1642034604609,0.74231,3368.8,3368.1,0.01250531]
[1642034604812,0.1187,3368.7,3368.1,0.01250531]
[1642034605010,0.1187,3368.7,3368.6,0.5]
[1642034605215,0.1805,3368.8,3368.6,0.6187]
[1642034605410,0.1187,3369.5,3368.6,0.6283632]
[1642034605609,0.1187,3369.5,3368.7,0.00909477]
[1642034605811,0.1187,3369.6,3369.2,1.30580343]
[1642034606010,2.54379562,3369.4,3368.8,0.1187]
[1642034606210,0.1187,3369.3,3368.9,1.27215026]
[1642034606655,0.1187,3369.3,3369.0,0.0073895]
[1642034606855,2.54379562,3369.4,3369.0,0.0073895]
[1642034606856,2.66249562,3369.4,3369.0,0.0073895]
[1642034607056,2.66249562,3369.4,3369.0,1.23719538]
[1642034607463,2.15861027,3369.3,3369.1,0.00682108]
[1642034607659,3.6687,3369.2,3369.1,0.00682108]
[1642034607958,4.76269502,3369.2,3369.1,0.00682108]
[1642034608159,2.66249562,3369.2,3369.1,0.00682108]
[1642034608359,3.66249562,3369.2,3369.1,0.00682108]
[1642034608959,3.66249562,3369.2,3369.1,5.35682108]
[1642034608960,2.54379562,3369.2,3369.1,5.35682108]
[1642034609162,2.54379562,3369.2,3369.1,5.47552108]
[1642034609358,2.54379562,3369.2,3369.1,4.94319228]
[1642034609657,2.54379562,3369.2,3369.1,5.44319228]
[1642034609861,0.85200369,3369.5,3369.1,5.44319228]
[1642034610114,0.00327989,3369.5,3369.2,0.1187]
[1642034610303,0.00327989,3369.5,3369.2,0.12495265]
[1642034610510,0.00327989,3369.5,3369.3,0.00568423]
[1642034610705,0.00327989,3369.5,3369.4,0.1187]
[1642034610906,2.37561577,3369.2,3369.1,6.8176712]
[1642034611107,2.37561577,3369.2,3369.1,4.8176712]
[1642034611414,2.37561577,3369.2,3369.1,0.00113685]
[1642034612412,2.37561577,3369.2,3369.1,1.47419209]
[1642034612618,4.92074868,3369.2,3369.1,1.97419209]
[1642034613413,2.37561577,3369.2,3369.1,1.97419209]
[1642034615159,2.37561577,3369.2,3369.1,2.09289209]
[1642034615555,2.37561577,3369.2,3369.1,3.91116785]
[1642034615956,2.3788509,3369.2,3369.1,8.01116785]
[1642034616560,2.3788509,3369.2,3369.1,3.91116785]
[1642034617462,2.3788509,3369.2,3369.1,2.09289209]
[1642034618407,2.3788509,3369.2,3369.1,1.97419209]
[1642034619611,2.3788509,3369.2,3369.1,0.50113685]
[1642034622058,2.3788509,3369.2,3369.1,2.25041052]
[1642034622460,2.3788509,3369.2,3369.1,0.50113685]
[1642034622862,2.3788509,3369.2,3369.1,2.26134243]
[1642034623059,2.3788509,3369.2,3369.1,2.27661408]
[1642034623260,2.3788509,3369.2,3369.1,2.2738909]
[1642034623460,2.3788509,3369.2,3369.1,2.28020661]
[1642034623862,2.3788509,3369.2,3369.1,5.53020661]
[1642034624662,2.3788509,3369.2,3369.1,5.64890661]
[1642034626908,2.3788509,3369.2,3369.1,2.39890661]
[1642034627309,2.88796824,3369.2,3369.1,0.61983685]
[1642034627911,2.88796824,3369.2,3369.1,0.50113685]
[1642034629452,5.43309308,3369.2,3369.1,0.50113685]
[1642034630457,2.88796824,3369.2,3369.1,0.50113685]
[1642034631658,6.3,3369.1,3368.3,0.1187]
[1642034631858,2.0,3369.0,3368.3,0.1187]
[1642034632156,2.0,3369.0,3368.4,0.00397896]
[1642034632157,1.4187,3369.0,3368.4,0.00397896]
[1642034632616,2.160931,3369.0,3368.8,0.5]
[1642034632807,8.49367384,3368.9,3368.8,0.5]
[1642034633008,2.41237384,3368.9,3368.8,0.5]
[1642034633211,0.62781734,3368.9,3368.8,0.5]
[1642034633812,5.02781734,3368.9,3368.8,0.5]
[1642034634416,5.02781734,3368.9,3368.8,0.45]
[1642034634616,0.87781734,3368.9,3368.8,0.45]
[1642034634816,3.42345617,3368.9,3368.8,0.45]
[1642034635821,5.54926481,3368.9,3368.8,0.45]
[1642034636018,7.25906481,3368.9,3368.8,0.45]
[1642034636855,8.10781946,3368.9,3368.8,0.45]
[1642034637058,5.98201082,3368.9,3368.8,0.45]
[1642034637256,5.27221082,3368.9,3368.8,0.45]
[1642034637958,3.90351082,3368.9,3368.8,0.45]
[1642034638363,3.05475617,3368.9,3368.8,0.45]
[1642034639357,3.05475617,3368.9,3368.8,1.62008206]
[1642034639964,3.05475617,3368.9,3368.8,0.45]
[1642034640406,3.35475617,3368.9,3368.8,0.45]
[1642034643212,4.83937617,3368.9,3368.8,0.45]
[1642034643411,6.32886101,3368.9,3368.8,0.45]
[1642034643859,5.28652101,3368.9,3368.8,0.45]
[1642034644059,4.54424101,3368.9,3368.8,0.45]
[1642034644260,3.05475617,3368.9,3368.8,0.45]
[1642034644559,2.85,3368.8,3368.3,1.46179568]
[1642034644759,2.85,3368.8,3368.0,0.1187]
[1642034644760,0.7423525,3368.7,3368.6,0.1187]
[1642034644962,0.74238,3368.6,3368.4,0.00397896]
[1642034645161,1.16108,3368.6,3368.4,0.00397896]
[1642034645362,7.85911734,3368.5,3368.2,0.00511581]
[1642034645561,2.60374,3368.4,3368.0,0.00625266]
[1642034645963,0.3,3368.3,3368.0,0.00625266]
[1642034646167,0.74251,3368.2,3368.0,0.00625266]
[1642034646364,1.4850111,3368.2,3368.0,0.00625266]
[1642034646563,2.5346111,3368.2,3368.0,0.00625266]
[1642034646763,1.7921011,3368.2,3368.0,0.00625266]
[1642034647364,2.54563883,3368.1,3368.0,0.00625266]
[1642034647620,2.84563883,3368.1,3368.0,0.00625266]
[1642034647814,2.54563883,3368.1,3368.0,0.00625266]
[1642034648218,3.36013883,3368.1,3368.0,0.00625266]
[1642034648620,3.88393883,3368.1,3368.0,0.00625266]
[1642034649421,4.39331632,3368.1,3368.0,0.00625266]
[1642034649921,4.16951632,3368.1,3368.0,0.00625266]
[1642034650321,3.86951632,3368.1,3368.0,0.00625266]
[1642034650724,4.16951632,3368.1,3368.0,0.00625266]
[1642034651370,6.86951632,3368.1,3368.0,0.00625266]
[1642034652159,6.36013883,3368.1,3368.0,0.00625266]
[1642034652560,6.36013883,3368.1,3368.0,0.50625266]
[1642034654361,6.66013883,3368.1,3368.0,0.50625266]
[1642034656106,6.36013883,3368.1,3368.0,0.50625266]
[1642034658115,6.66013883,3368.1,3368.0,0.50625266]
[1642034658317,7.40263883,3368.1,3368.0,0.50625266]
[1642034659455,9.46432388,3368.1,3368.0,0.50625266]
[1642034659656,9.65872388,3368.1,3368.0,0.50625266]
[1642034660059,9.65872388,3368.1,3367.9,1.0103909]
[1642034660260,4.65854816,3368.0,3367.9,1.0103909]
[1642034660459,5.07724816,3368.0,3367.9,1.0103909]
[1642034660860,3.0366575,3368.0,3367.9,1.0103909]
[1642034661258,0.92810934,3368.0,3367.9,1.0103909]
[1642034661461,3.72810934,3368.0,3367.9,1.0103909]
[1642034661663,0.92810934,3368.0,3367.9,1.0103909]
[1642034661861,0.62810934,3368.0,3367.9,1.0103909]
[1642034662161,4.35504817,3368.0,3367.9,1.5103909]
[1642034662607,4.35504817,3368.0,3367.5,0.92733569]
[1642034662803,0.7424956,3367.8,3367.5,0.92733569]
[1642034663003,0.7424956,3367.8,3367.6,0.00227369]
[1642034663206,0.2543849,3367.8,3367.6,0.00227369]
[1642034663403,0.2543849,3367.8,3367.6,0.50227369]
[1642034663603,0.50940934,3367.7,3367.6,0.50227369]
[1642034663803,0.50940934,3367.7,3367.6,0.5]
[1642034664210,3.05504817,3367.7,3367.6,0.5]
[1642034666014,3.058285,3367.7,3367.6,0.5]
[1642034669574,7.7,3367.6,3366.9,0.1187]
[1642034669773,7.7,3367.6,3366.6,0.1187]
[1642034669775,0.74273,3367.3,3366.6,0.1187]
[1642034669969,0.1188,3367.2,3367.0,0.00568423]
[1642034670243,0.1188,3367.2,3366.6,0.00795792]
[1642034670646,0.1188,3367.2,3366.1,0.01080004]
[1642034670647,0.74276,3366.8,3366.1,0.01080004]
[1642034670844,1.48558,3366.8,3366.1,0.01080004]
[1642034671044,0.74282,3366.8,3366.2,0.1188]
[1642034671249,1.04282,3366.8,3366.7,0.5]
[1642034671547,1.04282,3366.8,3366.7,0.5073895]
[1642034671748,8.69282,3366.8,3365.9,0.1188]
[1642034671951,0.74295,3366.3,3365.9,0.1188]
[1642034672155,0.1188,3366.2,3366.0,0.00397897]
[1642034672352,0.5448,3366.2,3366.0,0.00397897]
[1642034673151,0.50963941,3366.1,3366.0,0.00397897]
[1642034673352,3.32843941,3366.1,3366.0,0.50397897]
[1642034673551,3.62843941,3366.1,3366.0,0.50397897]
[1642034673751,4.62843941,3366.1,3366.0,0.50397897]
[1642034673957,3.9,3366.0,3365.9,0.1188]
[1642034674155,5.7618,3366.0,3365.9,0.1188]
[1642034674356,1.8618,3366.0,3365.9,0.1188]
[1642034674557,0.3,3366.1,3365.9,1.58222326]
[1642034674762,3.1688,3366.0,3365.9,2.08222326]
[1642034674956,3.1688,3366.0,3365.9,0.6188]
[1642034675158,1.1188,3366.0,3365.9,0.6188]
[1642034675558,0.1188,3366.0,3365.9,0.6188]
[1642034675758,2.84563883,3366.1,3365.9,0.5]
[1642034675958,2.54563883,3366.1,3365.9,0.5]
[1642034676159,2.54563883,3366.1,3366.0,6.4688]
[1642034676362,2.54563883,3366.1,3366.0,5.92385937]
[1642034676560,2.54563883,3366.1,3366.0,2.07385937]
[1642034676762,1.49924142,3366.7,3366.0,2.07385937]
[1642034676763,1.49924142,3366.8,3366.0,2.07385937]
[1642034676960,1.49924142,3366.8,3366.7,1.17347632]
[1642034677365,1.79924142,3366.8,3366.7,1.17347632]
[1642034677637,3.28472162,3366.8,3366.7,1.17347632]
[1642034677829,1.9042802,3366.8,3366.7,1.17347632]
[1642034678226,5.1542802,3366.8,3366.7,1.17347632]
[1642034678427,5.66385059,3366.8,3366.7,1.17347632]
[1642034678627,2.41385059,3366.8,3366.7,1.17347632]
[1642034679230,5.81385059,3366.8,3366.7,1.17347632]
[1642034679632,2.41385059,3366.8,3366.7,1.17347632]
[1642034679832,0.50957039,3366.8,3366.7,2.98456129]
[1642034680432,0.50957039,3366.8,3366.7,1.17347632]
[1642034681033,1.4854164,3366.9,3366.7,1.6811231]
[1642034681866,4.4854164,3366.9,3366.7,1.6811231]
[1642034682266,3.0,3366.9,3366.7,1.6811231]
[1642034682466,0.50957039,3366.8,3366.7,1.6811231]
[1642034686114,0.50957039,3366.8,3366.7,1.67347632]
[1642034689467,0.50957039,3366.8,3366.7,0.5]
[1642034689669,2.60479268,3366.8,3366.7,0.5]
[1642034690068,7.35479268,3366.8,3366.7,0.5]
[1642034690270,5.25957039,3366.8,3366.7,0.5]
[1642034690667,5.25957039,3366.8,3366.7,2.02882906]
[1642034690668,5.37837039,3366.8,3366.7,2.02882906]
[1642034691870,6.22758448,3366.8,3366.7,2.02882906]
[1642034692069,8.77475285,3366.8,3366.7,2.02882906]
[1642034692917,8.65595285,3366.8,3366.7,2.02882906]
[1642034695018,9.65595285,3366.8,3366.7,0.5]
[1642034695220,9.95595285,3366.8,3366.7,0.5]
[1642034696968,5.6,3366.6,3366.5,1.17082981]
[1642034697169,6.64284,3366.6,3366.5,1.17082981]
[1642034697369,4.26164,3366.6,3366.5,1.17082981]
[1642034697572,5.26164,3366.6,3366.5,1.17082981]
[1642034698069,5.77121039,3366.6,3366.5,1.17082981]
[1642034698275,5.65241039,3366.6,3366.5,1.17082981]
[1642034698671,7.72642461,3366.6,3366.4,0.5]
[1642034698872,10.11866639,3366.5,3366.4,0.5]
[1642034699071,10.12150851,3366.5,3366.4,0.5]
[1642034699473,10.6310789,3366.5,3366.4,0.5]
[1642034699673,13.17824727,3366.5,3366.4,1.744164]
[1642034700317,6.57824727,3366.5,3366.4,1.744164]
[1642034700923,6.46263369,3366.5,3366.4,0.5]
[1642034701518,4.3627673,3366.5,3366.4,0.5]
[1642034702921,6.8127673,3366.5,3366.4,0.5]
[1642034703123,4.3627673,3366.5,3366.4,0.5]
[1642034703324,3.0627673,3366.5,3366.4,0.5]
[1642034703975,3.0627673,3366.5,3366.4,0.6188]
[1642034705376,3.0627673,3366.5,3366.4,0.5]
[1642034705579,3.0627673,3366.5,3366.4,0.6188]
[1642034705777,3.0627673,3366.5,3366.4,2.37825317]
[1642034706078,3.0627673,3366.5,3366.4,2.37831557]
[1642034706278,3.0627673,3366.5,3366.4,2.43623174]
[1642034706978,0.51559893,3366.5,3366.4,2.43623174]
[1642034708011,0.51559893,3366.5,3366.4,5.23623174]
[1642034708210,0.51559893,3366.5,3366.4,0.6188]
[1642034708412,0.00602854,3366.5,3366.4,0.6188]
[1642034709419,2.55325451,3366.5,3366.4,0.6188]
[1642034709617,2.55325451,3366.5,3366.4,3.29395226]
[1642034710016,2.55325451,3366.5,3366.4,1.51126052]
[1642034710617,2.55325451,3366.5,3366.4,1.39246052]
[1642034710818,7.25325451,3366.5,3366.4,1.39246052]
[1642034711017,8.18172581,3366.5,3366.4,1.39246052]
[1642034711876,8.48172581,3366.5,3366.4,1.39246052]
[1642034712077,6.1,3366.4,3365.5,0.1188]
[1642034712278,0.7429145,3366.0,3365.5,0.1188]
[1642034712479,0.00170527,3366.3,3365.6,0.00227369]
[1642034712780,0.00113685,3366.2,3365.6,0.00227369]
[1642034713176,0.30113685,3366.2,3365.6,0.00227369]
[1642034713379,0.74292,3365.9,3365.6,0.00227369]
[1642034713578,1.4857751,3365.9,3365.6,0.00227369]
[1642034714380,0.7428551,3365.9,3365.6,0.00227369]
[1642034714982,2.54722597,3365.8,3365.6,0.00227369]
[1642034716922,0.00323083,3365.9,3365.6,0.00227369]
[1642034717523,0.00323083,3365.9,3365.7,0.5]
[1642034717923,2.5504568,3365.9,3365.8,0.00113684]
[1642034719888,2.5504568,3365.9,3365.8,0.11993684]
[1642034721087,2.5504568,3365.9,3365.8,0.00113684]
[1642034722814,5.5504568,3365.9,3365.8,0.00113684]
[1642034723215,0.06221335,3365.9,3365.8,0.00113684]
[1642034723415,1.03321573,3366.4,3365.8,0.00113684]
[1642034723616,1.49924142,3366.6,3366.4,4.23397582]
[1642034723816,1.49924142,3366.6,3366.5,0.5]
[1642034724415,0.50968171,3366.6,3366.5,0.5]
[1642034725422,2.58646324,3366.6,3366.5,0.5]
[1642034726774,4.82069051,3366.6,3366.5,0.5]
[1642034727172,5.67016003,3366.6,3366.5,0.5]
[1642034727772,5.45,3366.5,3366.4,1.61862766]
[1642034727971,7.59226805,3366.5,3366.4,1.61862766]
[1642034728171,7.59397332,3366.5,3366.4,1.61862766]
[1642034728575,8.95312455,3366.5,3366.4,2.11862766]
[1642034728972,6.9296565,3366.5,3366.4,2.11862766]
[1642034729375,1.4796565,3366.5,3366.4,2.11862766]
[1642034729973,0.63018698,3366.5,3366.4,2.11862766]
[1642034730219,0.51138698,3366.5,3366.4,2.11862766]
[1642034731219,0.51138698,3366.5,3366.2,1.31509665]
[1642034731220,11.75618698,3366.5,3365.9,0.1188]
[1642034731429,1.4858887,3366.1,3365.9,0.1188]
[1642034731624,5.8688,3366.0,3365.9,0.1188]
[1642034731824,6.1688,3366.0,3365.9,0.1188]
[1642034732028,6.1688,3366.0,3365.9,0.12050527]
[1642034732625,3.1188,3366.0,3365.9,0.12050527]
[1642034732824,4.47795123,3366.0,3365.9,0.12050527]
[1642034733023,5.22089133,3366.0,3365.9,0.12050527]
[1642034733424,5.10209133,3366.0,3365.9,0.12050527]
[1642034733625,8.10209133,3366.0,3365.9,0.12050527]
[1642034733877,5.10209133,3366.0,3365.9,0.12050527]
[1642034734766,5.00209133,3366.0,3365.9,0.12050527]
[1642034735567,4.15262181,3366.0,3365.9,0.12050527]
[1642034737175,4.15262181,3366.0,3365.9,0.00170527]
[1642034737619,4.45262181,3366.0,3365.9,0.00170527]
[1642034739924,4.15262181,3366.0,3365.9,0.00170527]
[1642034742380,4.15262181,3366.0,3365.9,2.90760527]
[1642034742577,3.35968171,3366.0,3365.9,9.50760527]
[1642034742976,3.35968171,3366.0,3365.9,10.00760527]
[1642034743175,3.35968171,3366.0,3365.9,3.40760527]
[1642034743374,3.35968171,3366.0,3365.9,1.40760527]
[1642034743575,5.90750766,3366.0,3365.9,6.20760527]
[1642034744985,5.90750766,3366.0,3365.9,8.09084618]
[1642034745219,5.90750766,3366.0,3365.9,9.09084618]
[1642034745419,5.90750766,3366.0,3365.9,8.09084618]
[1642034746021,5.90750766,3366.0,3365.9,3.29830901]
[1642034746219,5.90750766,3366.0,3365.9,1.4150681]
[1642034747024,5.90750766,3366.0,3365.9,1.2962681]
[1642034747423,5.90750766,3366.0,3365.9,4.5462681]
[1642034747824,5.90750766,3366.0,3365.9,5.2888881]
[1642034749978,5.90750766,3366.0,3365.9,2.0388881]
[1642034750181,5.90750766,3366.0,3365.9,2.1576881]
[1642034750379,5.90750766,3366.0,3365.9,3.94117088]
[1642034750581,5.90750766,3366.0,3365.9,3.82237088]
[1642034750785,5.90750766,3366.0,3365.9,3.81490805]
[1642034750983,5.90750766,3366.0,3365.9,2.03142527]
[1642034751983,5.90750766,3366.0,3365.9,3.82095239]
[1642034755828,5.90750766,3366.0,3365.9,0.50170527]
[1642034760931,6.20750766,3366.0,3365.9,0.50170527]
[1642034761934,6.20750766,3366.0,3365.9,0.5]
[1642034771026,6.32630766,3366.0,3365.9,0.5]
[1642034773281,6.20750766,3366.0,3365.9,0.5]
[1642034774084,6.20750766,3366.0,3365.9,3.75]
[1642034774281,5.90750766,3366.0,3365.9,3.75]
[1642034774481,5.90750766,3366.0,3365.9,0.5]
[1642034774883,5.90750766,3366.0,3365.9,0.6188]
[1642034775527,6.20750766,3366.0,3365.9,0.6188]
[1642034775927,6.20750766,3366.0,3365.9,0.5]
[1642034778130,6.20750766,3366.0,3365.9,0.6188]
[1642034780575,5.90750766,3366.0,3365.9,0.6188]
[1642034781274,5.90750766,3366.0,3365.9,2.40036748]
[1642034781681,5.90750766,3366.0,3365.9,3.14294748]
[1642034782078,5.90750766,3366.0,3365.9,7.74294748]
[1642034786576,0.84960764,3366.7,3366.1,0.03824619]
[1642034786779,0.84960764,3366.7,3366.3,0.74246]
[1642034786980,0.0022737,3366.6,3366.4,2.5448]
[1642034787377,0.00170527,3366.5,3366.4,2.5448]
[1642034787576,0.00170527,3366.5,3366.4,3.74086006]
[1642034787776,0.00170527,3366.5,3366.4,1.74086006]
[1642034787976,0.00170527,3366.5,3366.4,8.69086006]
[1642034788377,0.00170527,3366.5,3366.4,1.74086006]
[1642034788978,0.00170527,3366.5,3366.4,9.78538302]
[1642034790931,0.00170527,3366.5,3366.4,9.79281101]
[1642034792334,0.00170527,3366.5,3366.4,3.59281101]
[1642034792536,0.00170527,3366.5,3366.4,2.12948805]
[1642034792936,0.00170527,3366.5,3366.4,5.82948805]
[1642034793892,0.00170527,3366.5,3366.4,7.57544647]
[1642034794479,0.00170527,3366.5,3366.4,5.40348805]
[1642034795083,0.00170527,3366.5,3366.4,7.1388497]
[1642034795483,3.00170527,3366.5,3366.4,1.70348805]
[1642034796984,3.00170527,3366.5,3366.4,0.50742799]
[1642034799839,5.30355844,3366.5,3366.4,0.50742799]
[1642034800936,3.12050527,3366.5,3366.4,0.50742799]
[1642034804288,3.00170527,3366.5,3366.4,0.50742799]
[1642034807735,6.05965569,3366.5,3366.4,0.50742799]
[1642034815333,5.95965569,3366.5,3366.4,0.50742799]
[1642034822133,6.07845569,3366.5,3366.4,0.50742799]
[1642034822932,5.95965569,3366.5,3366.4,0.50742799]
[1642034827634,5.95965569,3366.5,3366.4,2.00806297]
[1642034828241,5.95965569,3366.5,3366.4,4.00717888]
[1642034828639,5.95965569,3366.5,3366.4,7.30717888]
[1642034829039,5.95965569,3366.5,3366.4,4.00717888]
[1642034830443,5.95965569,3366.5,3366.4,5.52686297]
[1642034832498,5.95965569,3366.5,3366.4,2.12686297]
[1642034832898,5.95965569,3366.5,3366.4,2.00806297]
[1642034834499,5.95965569,3366.5,3366.4,5.15806297]
[1642034835134,5.95965569,3366.5,3366.4,2.00806297]
[1642034843038,5.95965569,3366.5,3366.4,2.75054297]
[1642034843437,5.95965569,3366.5,3366.4,9.00054297]
[1642034843637,5.95965569,3366.5,3366.4,10.34054297]
[1642034844038,5.95965569,3366.5,3366.4,11.34054297]
[1642034844339,0.84960764,3367.0,3366.5,7.75]
[1642034844538,1.48955965,3367.2,3366.9,7.75]
[1642034844737,2.23422727,3367.4,3367.1,7.75]
[1642034844939,2.23422727,3367.4,3367.2,0.426]
[1642034845136,0.00454739,3367.3,3367.2,1.426]
[1642034845336,0.00454739,3367.3,3367.2,4.576]
[1642034845941,0.00454739,3367.3,3367.2,7.30301071]
[1642034846392,0.00454739,3367.3,3367.2,1.65475384]
[1642034846590,0.00454739,3367.3,3367.2,1.77345384]
[1642034846988,0.00454739,3367.3,3367.2,1.65475384]
[1642034847690,0.00454739,3367.3,3367.2,2.15475384]
[1642034848489,0.00454739,3367.3,3367.2,1.72875384]
[1642034851334,0.00454739,3367.3,3367.2,0.5]
[1642034853900,0.00454739,3367.3,3367.2,1.85593442]
[1642034858846,0.00454739,3367.3,3367.2,0.5]
[1642034859550,0.00454739,3367.3,3367.1,0.00701475]
[1642034859948,0.3,3367.5,3367.1,0.00701475]
[1642034859949,0.00397897,3367.2,3367.1,0.00701475]
[1642034860949,0.00397897,3367.2,3366.9,0.0845804]
[1642034861399,0.00341054,3367.1,3366.9,0.0845804]
[1642034861792,0.00284212,3367.0,3366.9,0.0845804]
[1642034864194,0.00284212,3367.0,3366.9,2.5845804]
[1642034864396,0.00284212,3367.0,3366.9,0.0845804]
[1642034864997,0.51248023,3367.0,3366.9,0.0845804]
[1642034866847,3.0600485,3367.0,3366.9,0.0845804]
[1642034867247,2.81128385,3367.0,3366.9,0.0845804]
[1642034876393,2.81128385,3367.0,3366.9,0.2033804]
[1642034877390,2.81128385,3367.0,3366.9,0.0845804]
[1642034880940,2.81128385,3367.0,3366.9,0.5845804]
[1642034887296,3.11128385,3367.0,3366.9,0.5845804]
[1642034888043,3.11128385,3367.0,3366.9,3.5845804]
[1642034890846,5.17320129,3367.0,3366.9,3.5845804]
[1642034891247,3.11128385,3367.0,3366.9,3.5845804]
[1642034892192,4.6067576,3367.0,3366.9,3.5845804]
[1642034892593,4.80440539,3366.0,3365.9,3.32099477]
[1642034892999,4.80440539,3366.0,3365.9,3.32724743]
[1642034893793,5.06812097,3366.0,3365.9,3.32724743]
[1642034895946,7.14685582,3366.0,3365.9,6.32724743]
[1642034896150,5.18692097,3366.0,3365.9,6.32724743]
[1642034897948,5.18692097,3366.0,3365.9,6.82724743]
[1642034898551,7.64852317,3366.0,3365.9,6.82724743]
[1642034899387,8.49793031,3366.0,3365.9,6.82724743]
[1642034899784,8.19793031,3366.0,3365.9,6.82724743]
[1642034900186,0.74297,3365.7,3365.3,1.26065164]
[1642034900385,0.74298,3365.6,3365.0,0.1188]
[1642034900587,0.74298,3365.6,3365.4,0.00284212]
[1642034900787,0.3,3365.5,3365.4,0.00284212]
[1642034900989,0.3,3365.5,3365.4,0.5]
[1642034901795,0.3,3365.5,3365.4,2.04933347]
[1642034901993,0.3,3365.5,3365.4,0.5]
[1642034902193,0.56371558,3365.5,3365.4,0.5]
[1642034903240,3.1123801,3365.5,3365.4,0.5]
[1642034905949,5.21285451,3365.5,3365.4,0.5]
[1642034906699,5.21285451,3365.5,3365.4,3.5]
[1642034906892,4.421878,3365.5,3365.4,3.5]
[1642034907899,1.87321348,3365.5,3365.4,3.5]
[1642034908498,2.75,3365.4,3364.0,4.519942]
[1642034908694,0.74301,3365.4,3364.5,0.74297]
[1642034908895,1.87719245,3365.5,3364.6,0.1188]
[1642034909298,0.00341054,3365.4,3364.6,0.1188]
[1642034909493,0.00341054,3365.4,3364.9,0.5]
[1642034909693,0.00284212,3365.3,3365.2,1.48179183]
[1642034910136,0.2665577,3365.3,3365.2,1.48179183]
[1642034910937,0.2665577,3365.3,3365.2,1.4887742]
[1642034911542,0.2665577,3365.3,3365.2,1.54342707]
[1642034915892,0.2665577,3365.3,3365.2,2.04342707]
[1642034916293,0.2665577,3365.3,3365.2,5.04342707]
[1642034917640,7.39128551,3365.3,3365.2,0.56163524]
[1642034917839,5.4353577,3365.3,3365.2,0.56163524]
[1642034918544,7.59807547,3365.3,3365.2,0.56163524]
[1642034919543,5.4353577,3365.3,3365.2,0.56163524]
[1642034919749,5.4353577,3365.3,3365.2,0.55473524]
[1642034921148,6.73815649,3365.3,3365.2,0.55465287]
[1642034921416,5.43815649,3365.3,3365.2,0.55465287]
[1642034921809,7.47565246,3365.3,3365.2,0.55465287]
[1642034922009,5.43815649,3365.3,3365.2,0.55465287]
[1642034922411,7.49119425,3365.3,3365.2,0.55465287]
[1642034923608,10.04025438,3365.3,3365.2,0.55465287]
[1642034924609,11.34025438,3365.3,3365.2,0.55465287]
[1642034925016,10.05467444,3365.3,3365.2,0.55465287]
[1642034925238,0.7432235,3364.9,3364.4,0.00227369]
[1642034925439,0.74325,3364.6,3364.4,0.00227369]
[1642034925638,0.74325,3364.6,3364.4,0.00511581]
[1642034926038,1.21113136,3364.5,3364.4,0.50511581]
[1642034926247,0.74325,3364.6,3364.4,0.50511581]
[1642034926644,0.74325,3364.6,3364.5,0.00454739]
[1642034926847,1.48649,3364.6,3364.5,0.00454739]
[1642034927847,1.48649,3364.6,3364.5,0.12334739]
[1642034928895,1.48649,3364.6,3364.5,0.00454739]
[1642034929093,0.74307,3364.8,3364.5,0.12334739]
[1642034929493,0.74307,3364.8,3364.6,0.50397896]
[1642034929694,0.74307,3364.8,3364.6,0.62277896]
[1642034929895,0.74307,3364.8,3364.7,0.00341054]